Cogmind - Beta 16.1 @@@ ROGUE MODE // 2026.04.15 @ 16:15:33 Player: skelll Result: Destroyed by AZ-FZX(R) with Subdweller Machine Gun Performance ------------- Evolutions (0) 0 Regions Visited (2) 400 Robots Destroyed (20) 100 Value Destroyed (555) 555 Prototype IDs (2) 40 Alien Tech Used (0) 0 Bonus (0) 0 TOTAL SCORE: 1095 Bonus ------- None Cogmind --------- Core Integrity 0/250 Matter 240/300 Energy 65/125 System Corruption 0% Temperature Cool (0) Movement Treading (320) Ox2 Location -10/Subcaves Parts ------- > --- POWER (1) -------- Light Ion Engine > --- PROPULSION (2) --- Light Treads Light Treads > --- UTILITY (2) ------ Huge Storage Unit Makeshift Targeting Computer > --- WEAPON (2) ------- Riot Gun Grenade Launcher > --- INVENTORY (25) --- Ion Engine Light Treads Light Treads Small Storage Unit Subdweller Optics Heavy EM Pulse Gun Heavy EM Pulse Gun Heavy Riot Gun Ripper Makeshift Spear Peak State ------------ > --- POWER ------------ Light Ion Engine > --- PROPULSION ------- Light Treads Light Treads > --- UTILITY ---------- Huge Storage Unit Makeshift Targeting Computer > --- WEAPON ----------- Heavy EM Pulse Gun Riot Gun > --- INVENTORY -------- Ion Engine Light Treads Light Treads Small Storage Unit Subdweller Optics Heavy EM Pulse Gun Heavy Riot Gun Grenade Launcher Ripper Makeshift Spear [Rating: 13] Favorites ----------- Power Light Ion Engine Engine Light Ion Engine Propulsion Light Treads Treads Light Treads Wheel Wheel Utility Small Storage Unit Device Heat Sink Storage Small Storage Unit Processor Makeshift Targeting Computer Weapon Light Assault Rifle Energy Gun Heavy EM Pulse Gun Energy Cannon Beam Cannon Ballistic Gun Light Assault Rifle Launcher Grenade Launcher Build | -11 -10 -10 ------- Run | Yrd Mat Sub Slots Evolved . | . . . Power . | . . . Propulsion . | . . . Utility . | . . . Weapon . | . . . Parts Attached 22 | 7 10 5 Power 3 | 1 2 . Engine 3 | 1 2 . Core . | . . . Reactor . | . . . Propulsion 5 | 2 2 1 Treads 3 | . 2 1 Leg . | . . . Wheel 2 | 2 . . Hover . | . . . Flight . | . . . Utility 5 | 1 3 1 Device 1 | . 1 . Storage 3 | 1 2 . Processor 1 | . . 1 Hackware . | . . . Protection . | . . . Artifact . | . . . Weapon 9 | 3 3 3 Energy Gun 4 | 1 1 2 Energy Cannon 2 | . 1 1 Ballistic Gun 2 | 2 . . Ballistic Cannon . | . . . Launcher 1 | . 1 . Special Weapon . | . . . Impact Weapon . | . . . Slashing Weapon . | . . . Piercing Weapon . | . . . Special Melee Weapon . | . . . Unidentified Prototypes . | . . . Parts Lost 4 | . 4 . Power 1 | . 1 . Propulsion 2 | . 2 . Utility . | . . . Weapon 1 | . 1 . Highest Loss Streak 4 | . 4 . To Critical Strikes . | . . . Average Backups 6 | 2 5 8 Power . | . . 1 Propulsion 2 | 1 2 2 Utility 1 | . . 1 Weapon 2 | . 2 3 Tool/Special . | . . . Unused Backups 11 | . 3 8 Power 1 | . . 1 Propulsion 4 | . 2 2 Utility 1 | . . 1 Weapon 5 | . 1 4 Tool/Special . | . . . Average Slot Usage (%) 98 | . 97 100 Engine 13 | . 13 14 Treads 25 | . 24 28 Wheel 1 | . 2 . Device 9 | . 13 3 Storage 14 | . 14 14 Processor 4 | . . 10 Energy Gun 11 | . 6 18 Energy Cannon 7 | . 6 8 Ballistic Gun 8 | . 14 . Peak Build Rating 13 | 6 8 13 Average Rating 8 | 4 6 10 On Entrance 4 | . 6 8 Avg Prop Armor Cover (%) . | . . . Naked Turns . | . . . Heaviest Build 89 | 13 15 89 Greatest Support 40 | 20 40 40 Greatest Overweight (x) 2 | . 2 2 Average Overweight (x) . | . . . Largest Inventory Capacity 25 | 8 25 25 Average Capacity 10 | 6 8 13 Most Carried 10 | 4 8 10 Average Carried 6 | 2 5 8 Final Capacity 25 | 8 8 25 Final Carried 10 | 4 8 10 Class Distribution -------------------- 100% | Mutant Dominant Class ---------------- Mutant | -10/Materials Mutant | -10/Subcaves Resources | -11 -10 -10 ----------- Run | Yrd Mat Sub Matter Collected 707 | 219 408 80 Remotely . | . . . Salvage Created 653 | . 482 171 Parts 35 | . 22 13 Haulers Intercepted . | . . . Recyclers Shooed . | . . . Parts Field Recycled . | . . . Retrieved Matter . | . . . Parts Self-Destructed 5 | . . 5 Prevented . | . . . Parts Restored . | . . . Kills | -11 -10 -10 ------- Run | Yrd Mat Sub Combat Hostiles Destroyed 19 | . 15 4 Guns 11 | . 11 . Cannons 5 | . 3 2 AOE 1 | . . 1 Classes Destroyed 4 | . 3 1 Operator 1 | . 1 . Swarmer 6 | . 6 . Grunt 9 | . 9 . Subdweller 4 | . . 4 Best Kill Streak 3 | . 3 2 Combat Bots Only 3 | . 3 2 Max Kills in Single Turn 2 | . 2 1 Gunslinging 1 | . 1 . Exploded 1 | . . 1 Melee . | . . . Uniques/NPCs Destroyed . | . . . Combat | -11 -10 -10 -------- Run | Yrd Mat Sub Hostile Shots Fired 103 | . 80 23 Missed 26 | . 19 7 Hits 77 | . 61 16 Projectile 77 | . 61 16 Damage Taken 985 | . 667 318 Core 253 | . 132 121 Absorbed by Shields . | . . . Regen/Repaired (Parts) 78 | . 78 . Core Remaining (%) 100 | 100 . . Volleys Fired 76 | . 51 25 Largest 2 | . 2 2 Hottest 105 | . 105 105 Shots Fired 125 | . 96 29 Gun 90 | . 81 9 Cannon 28 | . 13 15 Launcher 7 | . 2 5 Special . | . . . Kinetic 65 | . 65 . Thermal 42 | . 27 15 Explosive 7 | . 2 5 Electromagnetic 11 | . 2 9 Robot Hit Streak 31 | . 13 31 Robot Miss Streak 5 | . 5 5 Penetration Max . | . . . Secondary Targets 2 | . 2 . Max Gunslinging Chain 1 | . 1 . Shots Hit Robots 79 | . 53 26 Core Hits 34 | . 27 7 Critical Kills 2 | . 1 1 Critical Parts Destroyed 1 | . 1 . Critical Strikes 3 | . 2 1 Meltdown 2 | . 1 1 Destroy 1 | . 1 . Melee Attacks . | . . . Impact . | . . . Slashing . | . . . Piercing . | . . . Sneak Attacks . | . . . Combat Hostiles . | . . . Follow-up Attacks . | . . . Damage Inflicted 1302 | . 613 689 Guns 612 | . 483 129 Cannons 347 | . 86 261 Explosions 343 | . 44 299 Melee . | . . . Ramming . | . . . Kinetic 386 | . 386 . Thermal 444 | . 183 261 Explosive 343 | . 44 299 Electromagnetic 129 | . . 129 Impact . | . . . Slashing . | . . . Piercing . | . . . Highest Corruption . | . . . Average Corruption . | . . . Corruption Purged . | . . . Corruption Blocked . | . . . Overload Shots . | . . . Overflow Damage . | . . . Projectiles . | . . . Explosions . | . . . Melee . | . . . Knockbacks . | . . . Impact . | . . . Kinetic . | . . . Secondary . | . . . Self-Inflicted Damage . | . . . Shots . | . . . Rammed . | . . . Targets Rammed . | . . . Kicked . | . . . Crushed . | . . . Highest Temperature 40 | . 40 . Average Temperature 13 | . 13 . Received Heat Transfer 324 | . 306 18 Siege Activations . | . . . Martial Activations . | . . . Shielding Activations . | . . . Robots Disrupted . | . . . Combat Hostiles . | . . . Robots Corrupted . | . . . Combat Hostiles . | . . . Parts Fried . | . . . Impact Corruptions . | . . . Robots Melted 2 | . 1 1 Combat Hostiles 2 | . 1 1 Parts Melted 2 | . 2 . Heat Transferred 965 | . 410 555 Parts Sabotaged . | . . . Parts Stolen . | . . . Parts Stripped . | . . . Power Chain Reactions . | . . . Alert | -11 -10 -10 ------- Run | Yrd Mat Sub Maximum Alert Level . | . . . Low Security (%) 100 | 100 100 . Level 1 . | . . . Level 2 . | . . . Level 3 . | . . . Level 4 . | . . . Level 5 . | . . . High Security . | . . . Max Security . | . . . Peak Influence 124 | . 124 . Initial . | . . . Average 48 | . 50 . Influence Increases 458 | . 458 . Destroy 0b10 Robot/C 300 | . 300 . Destroy 0b10 Robot/NC 5 | . 5 . Destroy Leader 60 | . 60 . Successful Hack 30 | . 30 . Destroy Structure 18 | . 18 . Lose Combat Pursuer 45 | . 45 . Influence Decreases 458 | . 400 58 Entered New Map 29 | . . 29 Time Decay 419 | . 390 29 Lost Part 10 | . 10 . Squads Dispatched 3 | . 3 . Investigation 3 | . 3 . Extermination . | . . . Reinforcement . | . . . Assault . | . . . Garrison . | . . . Intercept . | . . . Searches Triggered . | . . . Construction Impeded . | . . . Haulers Reinforced . | . . . Active Scanning Responses . | . . . Cargo Convoy Interrupts . | . . . Stealth | -11 -10 -10 --------- Run | Yrd Mat Sub Distress Signals . | . . . Communications Jammed . | . . . Distress Signals . | . . . Times Spotted 29 | . 24 5 Peak Tracking Total 5 | . 5 2 Tactical Retreats 1 | . 1 . Traps | -11 -10 -10 ------- Run | Yrd Mat Sub Traps Triggered 2 | . 2 . Indirectly . | . . . Trap Hack Attempts . | . . . Triggered . | . . . Disarmed . | . . . Reprogrammed . | . . . Reused . | . . . Traps Extracted . | . . . Installed . | . . . Triggered . | . . . Machines | -11 -10 -10 ---------- Run | Yrd Mat Sub Machines Disabled . | . . . Max in Single Turn . | . . . Machines Repaired . | . . . Machines Dismantled . | . . . Machines Sabotaged . | . . . Overloaded Fab Kills . | . . . Hacking | -11 -10 -10 --------- Run | Yrd Mat Sub Machines Accessed 7 | . 7 . Terminals 5 | . 5 . Fabricators . | . . . Repair Stations 1 | . 1 . Recycling Units 1 | . 1 . Scanalyzers . | . . . Garrison Access . | . . . Total Hacks 14 | . 14 . Successful 7 | . 7 . Failed 7 | . 7 . Catastrophic 1 | . 1 . Database Lockouts . | . . . Manual . | . . . Terminals 11 | . 11 . Fabricators . | . . . Repair Stations 2 | . 2 . Recycling Units 1 | . 1 . Scanalyzers . | . . . Garrison Access . | . . . Terminal Hacks 4 | . 4 . Prototype ID Bank 1 | . 1 . Maintenance Status 1 | . 1 . Registered Prototypes 1 | . 1 . Zone Layout 1 | . 1 . Fabricator Hacks . | . . . Repair Station Hacks 2 | . 2 . Scan Component 1 | . 1 . Repair 1 | . 1 . Recycling Unit Hacks 1 | . 1 . Report Inventory 1 | . 1 . Scanalyzer . | . . . Garrison Access Hacks . | . . . Unauthorized Hacks . | . . . Terminals . | . . . Fabricators . | . . . Repair Stations . | . . . Recycling Units . | . . . Scanalyzers . | . . . Garrison Access . | . . . Data Cores Recovered 1 | . 1 . Used . | . . . Hacking Detections 3 | . 3 . Full Trace Events 1 | . 1 . Feedback Events . | . . . Feedback Blocked . | . . . Robot Schematics Acquired . | . . . Robots Built . | . . . Authchips . | . . . Time . | . . . Total Robot Build Rating . | . . . Part Schematics Acquired . | . . . Parts Built . | . . . Authchips . | . . . Time . | . . . Total Part Build Rating . | . . . Part Studies Acquired . | . . . Parts Repaired 1 | . 1 . Time 26 | . 26 . Parts Recycled . | . . . Recycled Matter . | . . . Retrieved Matter . | . . . Retrieved Components . | . . . Parts Scanalyzed . | . . . Part Schematics Acquired . | . . . Parts Damaged . | . . . Bothacking | -11 -10 -10 ------------ Run | Yrd Mat Sub Used RIF Installer . | . . . Robots Hacked . | . . . Non-combat . | . . . Combat . | . . . Robot Hacks Applied . | . . . Relay Couplers Released . | . . . Fabnet Peak Effective % . | . . . Robots Rewired . | . . . Allies Hacked . | . . . Hacks Repelled . | . . . Allies | -11 -10 -10 -------- Run | Yrd Mat Sub Total Allies . | . . . Largest Group . | . . . Highest-Rated Group . | . . . Highest-Rated Ally . | . . . Total Orders . | . . . Ally Attacks . | . . . Total Damage . | . . . Kills . | . . . Allies Corrupted . | . . . Allies Melted . | . . . Intel | -11 -10 -10 ------- Run | Yrd Mat Sub Active Infowar (turns) . | . . . Robot Analysis Total . | . . . Derelict Logs Recovered . | . . . Drone Launches . | . . . Drone Recoveries . | . . . Exploration | -11 -10 -10 ------------- Run | Yrd Mat Sub Turns Passed 2123 | 47 1237 839 Spaces Moved 1057 | 41 620 396 Core 5 | 1 4 . Treads 945 | . 549 396 Legs . | . . . Wheels 107 | 40 67 . Hover . | . . . Flight . | . . . Fastest Speed 50 | 50 80 160 Average Speed 164 | 79 151 194 Slowest Speed 320 | 80 160 320 Overloaded Moves . | . . . Propulsion Burnouts . | . . . Robots Hopped . | . . . Potential Cave-ins . | . . . Cave-ins Triggered . | . . . Exploration Rate (%) 37 | 3 87 23 Regions Visited 2 Branch Regions 1 Pre-discovered Areas 1 | . . 1 Known Exits Taken . | . . . Unknown Exits Taken 2 | 1 1 . Scrap Searched 8 | . . 8 Spaces Dug 7 | . 7 . Terrain Destroyed 46 | . 17 29 Melee . | . . . Projectile . | . . . AOE 46 | . 17 29 Terrain Rammed . | . . . Walls Destroyed . | . . . Machines Disabled . | . . . Actions | -11 -10 -10 --------- Run | Yrd Mat Sub Total 1319 | 51 832 436 Wait 128 | . 128 . Move 1055 | 40 619 396 Hop . | . . . Pick Up 23 | 4 15 4 Fast Attach 7 | 6 1 . Attach 5 | . 5 . Detach . | . . . Swap 17 | 1 8 8 Drop 8 | . 5 3 Fire 76 | . 51 25 Melee . | . . . Ram . | . . . Kick . | . . . Crush . | . . . Escape Stasis . | . . . Rewire . | . . . Trap . | . . . Miscellaneous . | . . . Route ------- -11/Scrapyard -10/Materials (discovered 4 exits: [*Mat x2] / [*Min] / [*Sub]) -10/Subcaves (discovered 1 exit: [*Mat]) History --------- Turn | Location | Event 19 | -11/Scrapyard | Discovered new exit (range 16) 48 | -11/Scrapyard | Entered Materials 203 | -10/Materials | Lost 4 parts (1p2n1w) 303 | -10/Materials | Build established: Mutant 401 | -10/Materials | Discovered new exit (range 5) 501 | -10/Materials | Repaired Lgt. Assault Rifle 936 | -10/Materials | Discovered new exit (range 13) 1064 | -10/Materials | Core integrity fell below 50% 1096 | -10/Materials | Discovered new exit (range 10) 1253 | -10/Materials | Discovered new exit (range 7) 1285 | -10/Materials | Entered Subcaves 1286 | -10/Subcaves | Approached by a straggling Scientist 1352 | -10/Subcaves | Learned location of Zion (-7) 1352 | -10/Subcaves | Met a Zionite searching for "candidates" 1430 | -10/Subcaves | A swath of the cavern ceiling suddenly collapsed 1658 | -10/Subcaves | A swath of the cavern ceiling suddenly collapsed 1756 | -10/Subcaves | Disturbed a concealed Subdweller 1764 | -10/Subcaves | Core integrity fell below 20% 1918 | -10/Subcaves | Discovered new exit (range 15) 2124 | -10/Subcaves | Destroyed by AZ-FZX(R) with Subdweller Machine Gun Last Messages --------------- 01804_ Found Sub. Machine Gun. 01804_ Found 64 Matter. 01809_ Searching scrap... 01809_ Found Sub. Laser. 01809_ Found Piercing Trap. 01809_ Found 61 Matter. 01814_ Acquired Riot Gun. 01819_ Dropped Lgt. Treads. 01819_ Acquired Mak. Spear. 01822_ Dropped Lgt. Assault Rifle. 01822_ Acquired Hvy. Riot Gun. 01830_ Acquired Ripper. 01831_ Acquired 30 matter. 01850_ Acquired Sub. Optics. 01918_ EXIT=FOUND 02095_ AZ-FZX(R) emerges from the Twisted Machinery. 02106_ BE-IW2(R) destroyed. 02109_ AZ-FZX(R) affixes Scrap Shield Fragment to Scrap Shield. Map ----- +----------------------------------------------------+ | # ######## #????????????????????????? | | # ###?????## ##???????????????????????? | | ##???????# ###?????????????????????? | | #####?????# ##?######?????????????? | | #### ####### ## #?????????????? | | ### ## ##